Workbook

Sheet Vejledning
A1: Vejledning til regneark, lønberegning.
A3: Regnearket anvendes til kontrol af lønsedler . Man skal bruge sin lønseddel og opgaveoversigten
A4: Regnearket kan anvendes af lærere og børnehaveklasseledere ansat på folkeskoler i Odense.
A5: Medlemmer ansat andre steder kan få hjælp til at kontrollere deres lønsedler i Odense Lærerforening
A8: Find det relevante ark i regnearket
A9: (Lærere Ny Løn, Lærere OK ansatte anc. Løn, Lærere tjenestemænd,
A10: Børnehaveklasseledere Ny Løn, Børnehaveklasseledere anc. Løn)
A13: Der kan kun indtastes i de gule felter!
A15: Beskæftigelsesgrad indtastes med ugentligt timetal (fremgår af lønsedlen)
A16: Grundløn fremkommer automatisk, tillæg for anciennitet skal indtastes med 1 ved relevant anciennitetstillæg (fremgår af lønsedlen)
A17: Forhåndsaftalt funktions- og kvalifikationsløn indtastes med 1 ud for funktionen (kvalifikationen)
A18: Ved delt funktion anvendes decimaltal.
A19: Odensetillæg fremgår automatisk
A21: Skoleaftaler og andet, der ikke er nævnt i regnearket indtastes med det månedlige beløb, der fremgår af lønsedlen.
A22: Der kan evt. indtastes navn på disse tillæg.
A24: Undervisningstillæg, specialundervisningstillæg m.m. indtastes i de relevante felter med det årlige undervisningstimetal
A25: Timetallet fremgår af opgaveoversigten
A27: Månedslønnen fremkommer automatisk og er sammenlignelig med lønsedlen
A29: Bemærk: Der kan fremkomme øreafvigelser p.g.a. afrunding.
A31: Arbejdstidsbestemte tillæg udbetales konkret og fremgår ikke af lønberegneren
A33: Kommentarer eller rettelser er velkomne, kontakt Bo Tryggedsson, Odense Lærerforening.

Sheet Lærere Ny Løn
A1: Lønberegning niveau | C1: =satser!F1 -> 01.04.2023
A2: Lærere Ny løn
A5: Navn:
A6: Måned
A8: Beskæftigelsesgrad (indsæt ugentligt timetal) | B8: 37
C9: Månedsløn
A10: Grundløn trin 31 | B10: 31 | C10: =satser!B11*B8/37 -> 30140.5
A11: Grundlønstillæg - lærer | C11: =IF(B14=1,"",satser!I3*B8/37) -> 374.576
A12: Lærere på grundløn | C12: =IF((B12+B13+B14)>1,"Fejl: kun et tillæg",IF(B12=1,satser!D12*B8/37,"")) -> 
A13: Anciennitetstillæg (trin 31-35) | C13: =IF((B12+B13+B14)>1,"Fejl: kun et tillæg",IF(B13=1,satser!D15*B8/37,"")) -> 
A14: Anciennitetstillæg (trin 31-40) | C14: =IF((B12+B13+B14)>1,"Fejl: kun et tillæg",IF(B14=1,satser!D20*B8/37,"")) -> 
A15: Anciennitetstillæg - lærer | C15: =IF(AND(B15=1,B14=1),satser!I4*B8/37,"") -> 
A16: Undervisertillæg | C16: =satser!I9*B8/37 -> 1623.162667
A18: Funktions- og kvalifikationsløn: Tast 1 i det gule felt, hvis omfattet:
A19: Nyt Odense tillæg | C19: =satser!I20*B8/37 -> 1385.93
A20: Kl. lærer/bh.kl.leder >27 | C20: =(IF(B20>1,"Fejl:kun et tillæg",IF(B20>0,B20*satser!I21,""))) -> 
A21: Kontaktperson til elevråd | C21: =(IF(B21>1,"Fejl:kun et tillæg",IF(B21>0,B21*satser!I22,""))) -> 
A22: Obs-klasser | C22: =(IF(B22>1,"Fejl:kun et tillæg",IF(B22>0,B22*satser!I23*B8/37,""))) -> 
A23: Flere/skiftende arbejdssteder | C23: =(IF(B23>1,"Fejl:kun et tillæg",IF(B23>0,B23*satser!I24*B8/37,""))) -> 
A24: TR uden forhandlingskompetence | C24: =(IF(B24+B25>1,"Fejl:kun et tillæg",IF(B24>0,B24*satser!I25,""))) -> 
A25: TR uden forhandlingskompetence > 35 | C25: =(IF(B24+B25>1,"Fejl:kun et tillæg",IF(B25>0,B25*satser!I26,""))) -> 
A26: AMR funktion | C26: =(IF(B26>1,"Fejl:kun et tillæg",IF(B26>0,B26*satser!I27,""))) -> 
A27: Spec-uv skolebørn | C27: =(IF(B27>1,"Fejl:kun et tillæg",IF(B27>0,B27*satser!I28,""))) -> 
A29: Specialv./erfaring fra Vollsmose skoler | C29: =(IF(B29>1,"Fejl:kun et tillæg",IF(B29>0,B29*satser!I30*B8/37,""))) -> 
A30: Pæd. Diplomudd./Masterudd. | C30: =(IF(B30>1,"Fejl:kun et tillæg",IF(B30>0,B30*satser!I31*B8/37,""))) -> 
A32: Undervisnings- og specialundervisningstillæg m.m. Indsæt tal fra opgaveoversigten i de gule felter
A33: I alt undervisning
A34: uv-tillæg > 750 | B34: =(IF((B33/B8*37)>750,((B33/B8*37)-750)*B8/37,0))/12 -> 0 | C34: =IF(B34>0,B34*satser!I35,"") -> 
A35: uv-tillæg > 780 | B35: =(IF((B33/B8*37)>780,((B33/B8*37)-780)*B8/37,0))/12 -> 0 | C35: =IF(B35>0,B35*satser!I36,"") -> 
A36: tale/høre tillæg | C36: =IF(B36>0,(B36/12)*satser!I37,"") -> 
A37: Spec-skole uv-tillæg | C37: =IF(B37>0,(B37/12)*satser!I38,"") -> 
A39: Andre tillæg (fx skoleaftaler) Indtast beløb fra lønseddel
A46: Fast løn i alt | C46: =SUM(C10:C45) -> 33524.16867

Sheet Lærere OK ansatte anc.løn
A1: Lønberegning niveau | C1: =satser!F1 -> 01.04.2023
A2: Lærere OK ansatte anc. Løn
A5: Navn:
A6: Måned
A8: Beskæftigelsesgrad (indsæt ugentligt timetal) | B8: 37
C10: Månedsløn
A11: Grundløn trin 43 | B11: 43 | C11: =satser!B23*B8/37 -> 36939.41667
A12: Stillingstillæg - lærer | C12: =satser!I5*B8/37 -> 1623.162667
A13: Undervisertillæg | C13: =satser!I10*B8/37 -> 686.7226667
A18: Funktions- og kvalifikationsløn: Tast 1 i det gule felt, hvis omfattet:
A19: Nyt Odense tillæg | C19: =satser!I20*B8/37 -> 1385.93
A20: Kl. lærer/bh.kl.leder >27 | C20: =(IF(B20>1,"Fejl:kun et tillæg",IF(B20>0,B20*satser!J21,""))) -> 
A21: Kontaktperson til elevråd | C21: =(IF(B21>1,"Fejl:kun et tillæg",IF(B21>0,B21*satser!J22,""))) -> 
A22: Obs-klasser | C22: =(IF(B22>1,"Fejl:kun et tillæg",IF(B22>0,B22*satser!J23*B8/37,""))) -> 
A23: Flere/skiftende arbejdssteder | C23: =(IF(B23>1,"Fejl:kun et tillæg",IF(B23>0,B23*satser!J24*B8/37,""))) -> 
A24: TR uden forhandlingskompetence | C24: =(IF(B24+B25>1,"Fejl:kun et tillæg",IF(B24>0,B24*satser!J25,""))) -> 
A25: TR uden forhandlingskompetence > 35 | C25: =(IF(B24+B25>1,"Fejl:kun et tillæg",IF(B25>0,B25*satser!J26,""))) -> 
A26: AMR funktion | C26: =(IF(B26>1,"Fejl:kun et tillæg",IF(B26>0,B26*satser!J27,""))) -> 
A27: Spec-uv skolebørn | C27: =(IF(B27>1,"Fejl:kun et tillæg",IF(B27>0,B27*satser!J28,""))) -> 
A29: Specialv./erfaring fra Vollsmose skoler | C29: =(IF(B29>1,"Fejl:kun et tillæg",IF(B29>0,B29*satser!J30*B8/37,""))) -> 
A30: Pæd. Diplomudd./Masterudd. | C30: =(IF(B30>1,"Fejl:kun et tillæg",IF(B30>0,B30*satser!J31*B8/37,""))) -> 
A32: Undervisnings- og specialundervisningstillæg m.m. Indsæt tal fra opgaveoversigten i de gule felter
A33: I alt undervisning
A34: uv-tillæg > 750 | B34: =(IF((B33/B8*37)>750,((B33/B8*37)-750)*B8/37,0))/12 -> 0 | C34: =IF(B34>0,B34*satser!J35,"") -> 
A35: uv-tillæg > 780 | B35: =(IF((B33/B8*37)>780,((B33/B8*37)-780)*B8/37,0))/12 -> 0 | C35: =IF(B35>0,B35*satser!J36,"") -> 
A36: tale/høre tillæg | C36: =IF(B36>0,(B36/12)*satser!J37,"") -> 
A37: Spec-skole uv-tillæg | C37: =IF(B37>0,(B37/12)*satser!J38,"") -> 
A39: Andre tillæg (fx skoleaftaler) Indtast beløb fra lønseddel
A46: Fast løn i alt | C46: =SUM(C10:C45) -> 40635.232

Sheet Lærere Tjenestemænd
A1: Lønberegning niveau | C1: =satser!F1 -> 01.04.2023
A2: Lærere Tjenestemænd
A5: Navn:
A6: Måned
A8: Beskæftigelsesgrad (indsæt ugentligt timetal) | B8: 37
C10: Månedsløn
A11: Grundløn trin 43 | B11: 43 | C11: =satser!B23*B8/37 -> 36939.41667
A12: Stillingstillæg - lærer | C12: =satser!I5*B8/37 -> 1623.162667
A13: Pension - stillingstillæg lærer | C13: =IF(B13=1,satser!I6,"") -> 
A14: Undervisertillæg | C14: =satser!I10*B8/37 -> 686.7226667
A18: Funktions- og kvalifikationsløn: Tast 1 i det gule felt, hvis omfattet:
A19: Nyt Odense tillæg | C19: =satser!I20*B8/37 -> 1385.93
A20: Kl. lærer/bh.kl.leder >27 | C20: =(IF(B20>1,"Fejl:kun et tillæg",IF(B20>0,B20*satser!J21,""))) -> 
A21: Kontaktperson til elevråd | C21: =(IF(B21>1,"Fejl:kun et tillæg",IF(B21>0,B21*satser!J22,""))) -> 
A22: Obs-klasser | C22: =(IF(B22>1,"Fejl:kun et tillæg",IF(B22>0,B22*satser!J23*B8/37,""))) -> 
A23: Flere/skiftende arbejdssteder | C23: =(IF(B23>1,"Fejl:kun et tillæg",IF(B23>0,B23*satser!J24*B8/37,""))) -> 
A24: TR uden forhandlingskompetence | C24: =(IF(B24+B25>1,"Fejl:kun et tillæg",IF(B24>0,B24*satser!J25,""))) -> 
A25: TR uden forhandlingskompetence > 35 | C25: =(IF(B24+B25>1,"Fejl:kun et tillæg",IF(B25>0,B25*satser!J26,""))) -> 
A26: AMR funktion | C26: =(IF(B26>1,"Fejl:kun et tillæg",IF(B26>0,B26*satser!J27,""))) -> 
A27: Spec-uv skolebørn | C27: =(IF(B27>1,"Fejl:kun et tillæg",IF(B27>0,B27*satser!J28,""))) -> 
A29: Specialv./erfaring fra Vollsmose skoler | C29: =(IF(B29>1,"Fejl:kun et tillæg",IF(B29>0,B29*satser!J30*B8/37,""))) -> 
A30: Pæd. Diplomudd./Masterudd. | C30: =(IF(B30>1,"Fejl:kun et tillæg",IF(B30>0,B30*satser!D24*B8/37,""))) -> 
A32: Undervisnings- og specialundervisningstillæg m.m. Indsæt tal fra opgaveoversigten i de gule felter
A33: I alt undervisning
A34: uv-tillæg > 750 | B34: =(IF((B33/B8*37)>750,((B33/B8*37)-750)*B8/37,0))/12 -> 0 | C34: =IF(B34>0,B34*satser!J35,"") -> 
A35: uv-tillæg > 780 | B35: =(IF((B33/B8*37)>780,((B33/B8*37)-780)*B8/37,0))/12 -> 0 | C35: =IF(B35>0,B35*satser!J36,"") -> 
A36: tale/høre tillæg | C36: =IF(B36>0,(B36/12)*satser!J37,"") -> 
A37: Spec-skole uv-tillæg | C37: =IF(B37>0,(B37/12)*satser!J38,"") -> 
A39: Andre tillæg (fx skoleaftaler) Indtast beløb fra lønseddel
A46: Fast løn i alt | C46: =SUM(C10:C45) -> 40635.232

Sheet Bh. kl. ledere Ny Løn
A1: Lønberegning niveau | C1: =satser!F1 -> 01.04.2023
A2: Børnehaveklasseledere Ny løn
A5: Navn:
A6: Måned
A8: Beskæftigelsesgrad (indsæt ugentligt timetal) | B8: 37
C9: Månedsløn
A10: Grundløn trin 28 | B10: 28 | C10: =satser!B8*B8/37 -> 28741.5
A11: Grundlønstillæg - børnehaveklasseleder | C11: =IF(B14=1,satser!I8*B8/37,IF(B15=1,satser!I8*B8/37,satser!I7*B8/37)) -> 499.4346667
A13: Anciennitetstillæg (trin 28-31) | C13: =IF((B13+B14+B15)>1,"Fejl: kun et tillæg",IF(B13=1,satser!D11*B8/37,"")) -> 
A14: Anciennitetstillæg (trin 28-33) | C14: =IF((B13+B14+B15)>1,"Fejl: kun et tillæg",IF(B14=1,satser!D13*B8/37,"")) -> 
A15: Anciennitetstillæg (trin 28-37) | C15: =IF((B13+B14+B15)>1,"Fejl: kun et tillæg",IF(B15=1,satser!D18*B8/37,"")) -> 
A16: Undervisertillæg | C16: =satser!I11*B8/37 -> 1922.823467
A18: Funktions- og kvalifikationsløn: Tast 1 i det gule felt, hvis omfattet:
A19: Nyt Odense tillæg | C19: =satser!I20*B8/37 -> 1385.93
A20: Kl. lærer/bh.kl.leder >27 | C20: =(IF(B20>1,"Fejl:kun et tillæg",IF(B20>0,B20*satser!I21,""))) -> 
A21: Kontaktperson til elevråd | C21: =(IF(B21>1,"Fejl:kun et tillæg",IF(B21>0,B21*satser!I22,""))) -> 
A22: Obs-klasser | C22: =(IF(B22>1,"Fejl:kun et tillæg",IF(B22>0,B22*satser!I23*B8/37,""))) -> 
A23: Flere/skiftende arbejdssteder | C23: =(IF(B23>1,"Fejl:kun et tillæg",IF(B23>0,B23*satser!I24*B8/37,""))) -> 
A24: TR uden forhandlingskompetence | C24: =(IF(B24+B25>1,"Fejl:kun et tillæg",IF(B24>0,B24*satser!I25,""))) -> 
A25: TR uden forhandlingskompetence > 35 | C25: =(IF(B24+B25>1,"Fejl:kun et tillæg",IF(B25>0,B25*satser!I26,""))) -> 
A26: AMR funktion | C26: =(IF(B26>1,"Fejl:kun et tillæg",IF(B26>0,B26*satser!I27,""))) -> 
A27: Spec-uv skolebørn | C27: =(IF(B27>1,"Fejl:kun et tillæg",IF(B27>0,B27*satser!I28,""))) -> 
A29: Specialv./erfaring fra Vollsmose skoler | C29: =(IF(B29>1,"Fejl:kun et tillæg",IF(B29>0,B29*satser!I30*B8/37,""))) -> 
A30: Pæd. Diplomudd./Masterudd. | C30: =(IF(B30>1,"Fejl:kun et tillæg",IF(B30>0,B30*satser!I31*B8/37,""))) -> 
A32: Undervisnings- og specialundervisningstillæg m.m. Indsæt tal fra opgaveoversigten i de gule felter
A33: I alt undervisning
A34: uv-tillæg > 836 | B34: =(IF((B33/B8*37)>835,((B33/B8*37)-835)*B8/37,0))/12 -> 0 | C34: =IF(B34>0,B34*satser!I35,"") -> 
A35: tale/høre tillæg | C35: =IF(B35>0,(B35/12)*satser!I37,"") -> 
A36: Spec-skole uv-tillæg | C36: =IF(B36>0,(B36/12)*satser!I38,"") -> 
A37: to-sprogede elever | C37: =IF(B37>0,(B37/12)*satser!I40,"") -> 
A39: Andre tillæg (fx skoleaftaler) Indtast beløb fra lønseddel
A46: Fast løn i alt | C46: =SUM(C10:C45) -> 32549.68813

Sheet Bh. kl. ledere Anc. løn
A1: Lønberegning niveau | C1: =satser!F1 -> 01.04.2023
A2: Børnehaveklasseledere anc. Løn
A5: Navn:
A6: Måned
A8: Beskæftigelsesgrad (indsæt ugentligt timetal) | B8: 37
C9: Månedsløn
A10: Grundløn trin 36 | B10: 36 | C10: =satser!B16*B8/37 -> 32671.16667
A11: Trintillæg | C11: =satser!I13*B8/37 -> 824.0672
A12: Undervisertillæg | C12: =satser!I12*B8/37 -> 1922.823467
A19: Funktions- og kvalifikationsløn: Tast 1 i det gule felt, hvis omfattet:
A20: Nyt Odense tillæg | C20: =satser!I20*B8/37 -> 1385.93
A21: Kl. lærer/bh.kl.leder >27 | C21: =(IF(B21>1,"Fejl:kun et tillæg",IF(B21>0,B21*satser!J21,""))) -> 
A22: Kontaktperson til elevråd | C22: =(IF(B22>1,"Fejl:kun et tillæg",IF(B22>0,B22*satser!J22,""))) -> 
A23: Obs-klasser | C23: =(IF(B23>1,"Fejl:kun et tillæg",IF(B23>0,B23*satser!J23*B8/37,""))) -> 
A24: Flere/skiftende arbejdssteder | C24: =(IF(B24>1,"Fejl:kun et tillæg",IF(B24>0,B24*satser!J24*B8/37,""))) -> 
A25: TR uden forhandlingskompetence | C25: =(IF(B25+B26>1,"Fejl:kun et tillæg",IF(B25>0,B25*satser!J25,""))) -> 
A26: TR uden forhandlingskompetence > 35 | C26: =(IF(B25+B26>1,"Fejl:kun et tillæg",IF(B26>0,B26*satser!J26,""))) -> 
A27: AMR funktion | C27: =(IF(B27>1,"Fejl:kun et tillæg",IF(B27>0,B27*satser!J27,""))) -> 
A28: Spec-uv skolebørn | C28: =(IF(B28>1,"Fejl:kun et tillæg",IF(B28>0,B28*satser!J28,""))) -> 
A30: Specialv./erfaring fra Vollsmose skoler | C30: =(IF(B30>1,"Fejl:kun et tillæg",IF(B30>0,B30*satser!J30*B8/37,""))) -> 
A31: Pæd. Diplomudd./Masterudd. | C31: =(IF(B31>1,"Fejl:kun et tillæg",IF(B31>0,B31*satser!J31*B8/37,""))) -> 
A33: Undervisnings- og specialundervisningstillæg m.m. Indsæt tal fra opgaveoversigten i de gule felter
A34: I alt undervisning
A35: uv-tillæg > 836 | B35: =(IF((B34/B8*37)>835,((B34/B8*37)-835)*B8/37,0))/12 -> 0 | C35: =IF(B35>0,B35*satser!J35,"") -> 
A36: tale/høre tillæg | C36: =IF(B36>0,(B36/12)*satser!J37,"") -> 
A37: Spec-skole uv-tillæg | C37: =IF(B37>0,(B37/12)*satser!J38,"") -> 
A38: to-sprogede elever | C38: =IF(B38>0,(B38/12)*satser!J40,"") -> 
A40: Andre tillæg (fx skoleaftaler) Indtast beløb fra lønseddel
A47: Fast løn i alt | C47: =SUM(C10:C46) -> 36803.98733

Sheet satser
A1: Satser pr. | F1: 01.04.2023
G2: Grundbeløb | I2: Månedligt beløb pr. | J2: =F1 -> 01.04.2023
F3: Grundlønstillæg - lærer | G3: 3000 | I3: =G3*C27/12 -> 374.576
F4: Anciennitetstillæg - lærer | G4: 10000 | I4: =G4*C27/12 -> 1248.586667
F5: Stillingstillæg - lærer | H5: 13000 | I5: =H5*C27/12 -> 1623.162667
F6: Pension - stillingstilæg lærer | H6: 2202 | I6: =H6*C27/12 -> 274.938784 | J6: Beløbet er 17,3% af 13.000 fratrukket særlig ferie
A7: Løntrin | B7: Pr. måned | C7: Anciennitetstillæg | F7: Grundlønstillæg - børnehaveklasseleder under 8 år | G7: 4000 | I7: =G7*C27/12 -> 499.4346667
A8: 28 | B8: 28741.5 | F8: Grundlønstillæg - børnehaveklasseleder over 8 år | G8: 2000 | I8: =G8*C27/12 -> 249.7173333
A9: 29 | B9: 29198.41667 | F9: Undervisertillæg, lærere Ny Løn | G9: 13000 | I9: =G9*C27/12 -> 1623.162667
A10: 30 | B10: 29664.41667 | F10: Undervisertillæg, lærere Anciennitetsløn | G10: 5500 | I10: =G10*C27/12 -> 686.7226667
A11: 31 | B11: 30140.5 | C11: 28 . 31 | D11: =B11-B8 -> 1399 | F11: Undervisertillæg, børehaveklasseledere, Ny Løn | G11: 15400 | I11: =G11*C27/12 -> 1922.823467
A12: 32 | B12: 30626.16667 | C12: 31 - 32 | D12: =B12-B11 -> 485.6666667 | F12: Undervisertillæg, børehaveklasseledere, Anciennitetsløn | G12: 15400 | I12: =G12*C27/12 -> 1922.823467
A13: 33 | B13: 31121.75 | C13: 28 - 33 | D13: =B13-B8 -> 2380.25 | F13: Trintillæg børnehaveklasseledere | G13: 6600 | I13: =G13*C27/12 -> 824.0672
A14: 34 | B14: 31628.08333
A15: 35 | B15: 32144.08333 | C15: 31 - 35 | D15: =B15-B11 -> 2003.583333
A16: 36 | B16: 32671.16667
A17: 37 | B17: 33208.5 | C17: 36 - 37 | D17: =B17-B16 -> 537.3333333
A18: 38 | B18: 33781.75 | C18: 28-37 | D18: =B17-B8 -> 4467 | G18: Grundbeløb | I18: Månedligt beløb pr. | J18: =F1 -> 01.04.2023
A19: 39 | B19: 34352.75 | F19: Funktions- og kvalifikationsløn: | G19: Ny Løn | H19: Anciennitetsløn | I19: Ny Løn | J19: Anciennitetsløn
A20: 40 | B20: 34935.58333 | C20: 31 - 40 | D20: =B20-B11 -> 4795.083333 | F20: Nyt Odense tillæg | G20: 11100 | H20: 11100 | I20: =ROUND(G20*$C$27/12,2) -> 1385.93 | J20: =ROUND(H20*$C$27/12,2) -> 1385.93
A21: 41 | B21: 35530.08333 | F21: Kl. lærer/bh.kl.leder >27 | G21: 4200 | H21: 3100 | I21: =ROUND(G21*$C$27/12,2) -> 524.41 | J21: 387.06
A22: 42 | B22: 36136.33333 | F22: Kontaktperson til elevråd | G22: 3100 | H22: 3100 | I22: 387.06 | J22: 387.06
A23: 43 | B23: 36939.41667 | F23: Obs-klasser | G23: 4200 | H23: 4200 | I23: 524.41 | J23: 524.41
A24: 44 | B24: 37764.75 | C24: 43 - 44 | D24: =B24-B23 -> 825.3333333 | F24: Flere/skiftende arbejdssteder | G24: 3100 | H24: 3100 | I24: 387.06 | J24: 387.06
F25: TR uden forhandlingskompetence | G25: 5350 | H25: 5350 | I25: 667.99 | J25: 667.99
F26: TR uden forhandlingskompetence > 35 | G26: 6000 | H26: 6000 | I26: 749.15 | J26: 749.15
A27: Reguleringsfaktor: | C27: 1.498304 | F27: AMR funktion | G27: 5350 | H27: 5350 | I27: 667.99 | J27: 667.99
F28: Spec-uv skolebørn | G28: 18600 | H28: 18600 | I28: 2322.37 | J28: 2322.37
F30: Specialv./erfaring fra Vollsmose skoler | G30: 3600 | H30: 3600 | I30: =ROUND(G30*$C$27/12,2) -> 449.49 | J30: =ROUND(H30*$C$27/12,2) -> 449.49
F31: Pæd. Diplomudd./Masterudd. | G31: 7500 | H31: 7500 | I31: =ROUND(G31*$C$27/12,2) -> 936.44 | J31: =ROUND(H31*$C$27/12,2) -> 936.44 | K31: Tjenestemænd dog 1 trin
F34: Undervisnings- og specialundervisningstillæg m.m.
F35: uv-tillæg > 750 | G35: 90 | H35: 90 | I35: =ROUND(G35*$C$27,2) -> 134.85 | J35: 134.85
F36: uv-tillæg > 780 | G36: 90 | H36: 90 | I36: 134.85 | J36: =ROUND(H36*$C$27,2) -> 134.85
F37: tale/høre tillæg | G37: 25.84 | H37: 25.84 | I37: 38.72 | J37: 38.72
F38: Spec-skole uv-tillæg | G38: 18.92 | H38: 18.92 | I38: 28.35 | J38: 28.35
F40: to-sprogede elever | G40: 18.92 | H40: 18.92 | I40: =ROUND(G40*$C$27,2) -> 28.35 | J40: =ROUND(H40*$C$27,2) -> 28.35
